[Event "*** Titled Tuesday Blitz"]
[Site "Chess.com"]
[Date "2020.01.07"]
[Round "4"]
[White "FMVolodymyrSakun"]
[Black "Alexander_Moskalenko"]
[Result "0-1"]
[WhiteElo "2564"]
[BlackElo "2808"]
[TimeControl "180+2"]
[EndTime "13:58:40 PST"]
[Termination "Alexander_Moskalenko won by resignation"]

1. e4 {[%clk 0:03:01.9]} 1... e6 {[%clk 0:02:59.2]} 2. d4 {[%clk 0:03:02.9]}
2... d5 {[%clk 0:03:01.1]} 3. Nd2 {[%clk 0:03:03.7]} 3... c5 {[%clk 0:03:00.2]}
4. exd5 {[%clk 0:03:03.8]} 4... Qxd5 {[%clk 0:03:02.1]} 5. Ngf3 {[%clk
0:03:04.7]} 5... cxd4 {[%clk 0:03:02.2]} 6. Bc4 {[%clk 0:03:05.7]} 6... Qd7
{[%clk 0:03:03]} 7. O-O {[%clk 0:03:06.4]} 7... Nf6 {[%clk 0:03:02.6]} 8. Nb3
{[%clk 0:03:06.8]} 8... Nc6 {[%clk 0:03:03.1]} 9. Nbxd4 {[%clk 0:03:07]} 9...
Nxd4 {[%clk 0:03:01]} 10. Qxd4 {[%clk 0:03:06.5]} 10... Qxd4 {[%clk 0:03:01.7]}
11. Nxd4 {[%clk 0:03:07.6]} 11... a6 {[%clk 0:03:03.6]} 12. Be3 {[%clk 0:03:07]}
12... Bd7 {[%clk 0:03:04.8]} 13. h3 {[%clk 0:03:07.5]} 13... Rc8 {[%clk
0:03:05.2]} 14. Bb3 {[%clk 0:03:08.4]} 14... Bc5 {[%clk 0:03:06.6]} 15. Rad1
{[%clk 0:03:08.6]} 15... O-O {[%clk 0:03:03.8]} 16. Rfe1 {[%clk 0:03:09.2]}
16... Rfd8 {[%clk 0:03:03.9]} 17. c3 {[%clk 0:02:21.6]} 17... h6 {[%clk
0:03:02.8]} 18. Nf3 {[%clk 0:02:02.6]} 18... Bxe3 {[%clk 0:02:58]} 19. Rxe3
{[%clk 0:02:03.6]} 19... Bb5 {[%clk 0:02:54.7]} 20. Rd4 {[%clk 0:01:44.2]} 20...
Kf8 {[%clk 0:02:47.4]} 21. Rxd8+ {[%clk 0:01:36.4]} 21... Rxd8 {[%clk
0:02:47.8]} 22. Nd4 {[%clk 0:01:37.5]} 22... Bd7 {[%clk 0:02:46.7]} 23. Kf1
{[%clk 0:01:33.4]} 23... Rc8 {[%clk 0:02:40.3]} 24. Ke2 {[%clk 0:01:32.3]} 24...
b5 {[%clk 0:02:37.7]} 25. a3 {[%clk 0:01:24.1]} 25... Rc5 {[%clk 0:02:38.3]} 26.
Rd3 {[%clk 0:01:20.1]} 26... Ke7 {[%clk 0:02:38.1]} 27. Rg3 {[%clk 0:01:10.1]}
27... g5 {[%clk 0:02:39]} 28. Rd3 {[%clk 0:01:07.8]} 28... Bc8 {[%clk
0:02:38.8]} 29. Nc2 {[%clk 0:01:05.1]} 29... Bb7 {[%clk 0:02:39.3]} 30. Ne3
{[%clk 0:01:06.3]} 30... h5 {[%clk 0:02:36.3]} 31. a4 {[%clk 0:01:04.7]} 31...
h4 {[%clk 0:02:32.3]} 32. axb5 {[%clk 0:01:05.2]} 32... Rxb5 {[%clk 0:02:28.2]}
33. c4 {[%clk 0:01:04.2]} 33... Re5 {[%clk 0:02:29.4]} 34. f3 {[%clk 0:00:53.8]}
34... Nd7 {[%clk 0:02:18.3]} 35. Bc2 {[%clk 0:00:50.6]} 35... a5 {[%clk
0:02:11.7]} 36. Ra3 {[%clk 0:00:37.4]} 36... Nb6 {[%clk 0:02:04]} 37. b3 {[%clk
0:00:34.2]} 37... f5 {[%clk 0:01:54.2]} 38. Kd2 {[%clk 0:00:35]} 38... Kd6
{[%clk 0:01:47.5]} 39. Bd3 {[%clk 0:00:35.1]} 39... Bc6 {[%clk 0:01:42.6]} 40.
Ra1 {[%clk 0:00:31.8]} 40... Nd7 {[%clk 0:01:43.7]} 41. Bc2 {[%clk 0:00:31.1]}
41... Kc7 {[%clk 0:01:43.9]} 42. Rf1 {[%clk 0:00:28.7]} 42... Nf6 {[%clk
0:01:21.4]} 43. Ra1 {[%clk 0:00:24.4]} 43... Nh5 {[%clk 0:01:20.3]} 44. Re1
{[%clk 0:00:20]} 44... Kd6 {[%clk 0:01:20]} 45. Bd3 {[%clk 0:00:20.3]} 45... Nf4
{[%clk 0:01:20.9]} 46. Bf1 {[%clk 0:00:20.9]} 46... Bd7 {[%clk 0:01:15.1]} 47.
Ra1 {[%clk 0:00:20.7]} 47... Rc5 {[%clk 0:01:16.7]} 48. Kc3 {[%clk 0:00:21.1]}
48... Ke5 {[%clk 0:01:03.1]} 49. Nc2 {[%clk 0:00:21.6]} 49... Nd5+ {[%clk
0:00:56.5]} 50. Kd2 {[%clk 0:00:21.8]} 50... Nb6 {[%clk 0:00:53.8]} 51. Re1+
{[%clk 0:00:21.8]} 51... Kf6 {[%clk 0:00:54.5]} 52. Kc3 {[%clk 0:00:21.7]} 52...
e5 {[%clk 0:00:49]} 53. Ne3 {[%clk 0:00:21.7]} 53... f4 {[%clk 0:00:48]} 54. Nc2
{[%clk 0:00:21.5]} 54... Bf5 {[%clk 0:00:48.3]} 55. Na3 {[%clk 0:00:21.9]} 55...
Nd5+ {[%clk 0:00:48.7]} 56. Kd2 {[%clk 0:00:23.1]} 56... Ne3 {[%clk 0:00:48.8]}
57. Nb5 {[%clk 0:00:23.4]} 57... e4 {[%clk 0:00:49.2]} 58. Ra1 {[%clk
0:00:22.2]} 58... exf3 {[%clk 0:00:49.1]} 59. gxf3 {[%clk 0:00:23.5]} 59...
Nxf1+ {[%clk 0:00:49.8]} 60. Rxf1 {[%clk 0:00:23.5]} 60... Bxh3 {[%clk
0:00:51.7]} 61. Ra1 {[%clk 0:00:21.1]} 61... Bc8 {[%clk 0:00:47.8]} 62. Rxa5
{[%clk 0:00:20.8]} 62... h3 {[%clk 0:00:47.7]} 63. Ra1 {[%clk 0:00:21.6]} 63...
g4 {[%clk 0:00:46.6]} 64. fxg4 {[%clk 0:00:21]} 64... Bb7 {[%clk 0:00:48.1]} 65.
Nd6 {[%clk 0:00:19.6]} 65... Bg2 {[%clk 0:00:48.9]} 66. b4 {[%clk 0:00:15.8]}
66... Rc6 {[%clk 0:00:49.7]} 67. c5 {[%clk 0:00:17]} 67... h2 {[%clk 0:00:50.3]}
68. Kd3 {[%clk 0:00:16.7]} 68... h1=Q {[%clk 0:00:50.4]} 69. Rxh1 {[%clk
0:00:17.6]} 69... Bxh1 {[%clk 0:00:52.3]} 70. Kd4 {[%clk 0:00:18.9]} 70... Kg5
{[%clk 0:00:51.1]} 71. b5 {[%clk 0:00:19.3]} 71... Rc7 {[%clk 0:00:51.7]} 72. b6
{[%clk 0:00:19.9]} 72... Rd7 {[%clk 0:00:52.4]} 73. Ke5 {[%clk 0:00:18.5]} 73...
Kxg4 {[%clk 0:00:51.5]} 74. Ke6 {[%clk 0:00:16.2]} 74... Rh7 {[%clk 0:00:53]}
75. Nf7 {[%clk 0:00:12]} 75... Rxf7 {[%clk 0:00:42.5]} 76. Kxf7 {[%clk
0:00:12.8]} 76... Ba8 {[%clk 0:00:38.8]} 77. Ke7 {[%clk 0:00:12.5]} 77... f3
{[%clk 0:00:40.3]} 78. Kd6 {[%clk 0:00:13]} 78... f2 {[%clk 0:00:41.6]} 79. c6
{[%clk 0:00:14.4]} 79... f1=Q {[%clk 0:00:41.8]} 80. b7 {[%clk 0:00:15.8]} 80...
Qf4+ {[%clk 0:00:42.4]} 81. Kd7 {[%clk 0:00:16]} 81... Qf7+ {[%clk 0:00:38.5]}
82. Kc8 {[%clk 0:00:16.6]} 82... Qe8+ {[%clk 0:00:38.3]} 83. Kc7 {[%clk
0:00:17.7]} 83... Qe5+ {[%clk 0:00:38.6]} 84. Kb6 {[%clk 0:00:17.4]} 84... Qb8
{[%clk 0:00:37.2]} 85. Ka6 {[%clk 0:00:13.3]} 85... Bxb7+ {[%clk 0:00:38.4]} 86.
cxb7 {[%clk 0:00:14.1]} 86... Kf5 {[%clk 0:00:40.2]} 87. Kb6 {[%clk 0:00:15.5]}
87... Ke6 {[%clk 0:00:42.1]} 88. Kc6 {[%clk 0:00:16.5]} 88... Ke7 {[%clk
0:00:44]} 89. Kb6 {[%clk 0:00:17.4]} 89... Kd7 {[%clk 0:00:45.9]} 0-1

[Event "*** Titled Tuesday Blitz"]
[Site "Chess.com"]
[Date "2020.01.07"]
[Round "4"]
[White "Rud_Makarian"]
[Black "GMKrikor"]
[Result "1/2-1/2"]
[WhiteElo "2662"]
[BlackElo "2877"]
[TimeControl "180+2"]
[EndTime "13:59:01 PST"]
[Termination "Game drawn by repetition"]

1. d4 {[%clk 0:02:55.1]} 1... Nf6 {[%clk 0:03:00.9]} 2. c4 {[%clk 0:02:56]} 2...
e6 {[%clk 0:03:02.4]} 3. Nf3 {[%clk 0:02:56.3]} 3... d5 {[%clk 0:03:01.3]} 4. g3
{[%clk 0:02:56.6]} 4... Bb4+ {[%clk 0:02:57]} 5. Nc3 {[%clk 0:02:54.5]} 5...
dxc4 {[%clk 0:02:51.9]} 6. Bg2 {[%clk 0:02:54.8]} 6... O-O {[%clk 0:02:53.2]} 7.
O-O {[%clk 0:02:56.1]} 7... Nc6 {[%clk 0:02:54.3]} 8. Qa4 {[%clk 0:02:56.4]}
8... Nd5 {[%clk 0:02:52.8]} 9. Qc2 {[%clk 0:02:56.9]} 9... Be7 {[%clk 0:02:54]}
10. Rd1 {[%clk 0:02:55.5]} 10... Ncb4 {[%clk 0:02:54.8]} 11. Qd2 {[%clk
0:02:51.1]} 11... c5 {[%clk 0:02:46.2]} 12. a3 {[%clk 0:02:31.1]} 12... Nc6
{[%clk 0:02:41.3]} 13. dxc5 {[%clk 0:01:52.9]} 13... Nxc3 {[%clk 0:02:39]} 14.
bxc3 {[%clk 0:01:54.8]} 14... Bxc5 {[%clk 0:02:17.3]} 15. Qxd8 {[%clk
0:01:45.8]} 15... Rxd8 {[%clk 0:02:18.1]} 16. Rxd8+ {[%clk 0:01:46.9]} 16...
Nxd8 {[%clk 0:02:20]} 17. Ne5 {[%clk 0:01:48.4]} 17... f6 {[%clk 0:02:00.7]} 18.
Nxc4 {[%clk 0:01:44.2]} 18... e5 {[%clk 0:02:02.3]} 19. Rb1 {[%clk 0:01:27.8]}
19... Rb8 {[%clk 0:01:52.3]} 20. Be3 {[%clk 0:01:22.6]} 20... Bxe3 {[%clk
0:01:50.1]} 21. Nxe3 {[%clk 0:01:24.5]} 21... Be6 {[%clk 0:01:46.6]} 22. c4
{[%clk 0:01:12.1]} 22... b6 {[%clk 0:01:11.9]} 23. c5 {[%clk 0:01:12.2]} 23...
Kf8 {[%clk 0:01:11.3]} 24. cxb6 {[%clk 0:01:08]} 24... Rxb6 {[%clk 0:01:11.9]}
25. Rc1 {[%clk 0:00:51.6]} 25... f5 {[%clk 0:00:58.9]} 26. f4 {[%clk 0:00:37.7]}
26... e4 {[%clk 0:00:55.3]} 27. g4 {[%clk 0:00:35.8]} 27... g6 {[%clk 0:00:39]}
28. gxf5 {[%clk 0:00:35.7]} 28... gxf5 {[%clk 0:00:40.9]} 29. Rc3 {[%clk
0:00:35.9]} 29... Nf7 {[%clk 0:00:31.9]} 30. Bh3 {[%clk 0:00:34.5]} 30... Nd6
{[%clk 0:00:33.4]} 31. Kf2 {[%clk 0:00:34.5]} 31... Ke7 {[%clk 0:00:32]} 32.
Rc7+ {[%clk 0:00:32.1]} 32... Kf6 {[%clk 0:00:32.7]} 33. Rxa7 {[%clk 0:00:31.4]}
33... h6 {[%clk 0:00:27.7]} 34. a4 {[%clk 0:00:29.4]} 34... Rb2 {[%clk
0:00:24.4]} 35. Ra6 {[%clk 0:00:29.5]} 35... Ke7 {[%clk 0:00:25.8]} 36. a5
{[%clk 0:00:27]} 36... Ra2 {[%clk 0:00:20.1]} 37. Ra7+ {[%clk 0:00:23.2]} 37...
Kf6 {[%clk 0:00:21.4]} 38. a6 {[%clk 0:00:21.8]} 38... Nc4 {[%clk 0:00:22.7]}
39. Rh7 {[%clk 0:00:18]} 39... Nxe3 {[%clk 0:00:22.9]} 40. Rxh6+ {[%clk
0:00:16.2]} 40... Ke7 {[%clk 0:00:08.4]} 41. Kxe3 {[%clk 0:00:15.3]} 41... Rxa6
{[%clk 0:00:09.7]} 42. Kf2 {[%clk 0:00:14.9]} 42... Ra3 {[%clk 0:00:08.2]} 43.
Bf1 {[%clk 0:00:15.2]} 43... e3+ {[%clk 0:00:08.3]} 44. Kg3 {[%clk 0:00:16.1]}
44... Ra2 {[%clk 0:00:05.2]} 45. Kf3 {[%clk 0:00:16.5]} 45... Ra3 {[%clk
0:00:06.1]} 46. Bg2 {[%clk 0:00:16]} 46... Bc4 {[%clk 0:00:05.2]} 47. Rb6 {[%clk
0:00:15]} 47... Ra2 {[%clk 0:00:05.3]} 48. Bf1 {[%clk 0:00:15.6]} 48... Ra1
{[%clk 0:00:06]} 49. Bh3 {[%clk 0:00:16.5]} 49... Ra2 {[%clk 0:00:06.5]} 50.
Kxe3 {[%clk 0:00:16.9]} 50... Ra3+ {[%clk 0:00:05.8]} 51. Kd4 {[%clk 0:00:17.4]}
51... Rxh3 {[%clk 0:00:07]} 52. Kxc4 {[%clk 0:00:18.6]} 52... Rxh2 {[%clk
0:00:04.4]} 53. e3 {[%clk 0:00:18.7]} 53... Rd2 {[%clk 0:00:04.2]} 54. Kc3
{[%clk 0:00:16.9]} 54... Rd1 {[%clk 0:00:05.6]} 55. Rb4 {[%clk 0:00:17.8]} 55...
Rd8 {[%clk 0:00:06.1]} 56. Rd4 {[%clk 0:00:18.3]} 56... Rc8+ {[%clk 0:00:07.6]}
57. Kd3 {[%clk 0:00:19.4]} 57... Ra8 {[%clk 0:00:09.5]} 58. Rb4 {[%clk 0:00:20]}
58... Ke6 {[%clk 0:00:10.6]} 59. Rb6+ {[%clk 0:00:20.4]} 59... Kf7 {[%clk
0:00:12.1]} 60. Kd4 {[%clk 0:00:21]} 60... Re8 {[%clk 0:00:13.4]} 61. Rb5 {[%clk
0:00:20.9]} 61... Re4+ {[%clk 0:00:14.4]} 62. Kd3 {[%clk 0:00:20.7]} 62... Kf6
{[%clk 0:00:16]} 63. Ke2 {[%clk 0:00:21.5]} 63... Ra4 {[%clk 0:00:16.5]} 64. Kf3
{[%clk 0:00:22.7]} 64... Ra1 {[%clk 0:00:16]} 65. Rb6+ {[%clk 0:00:23.3]} 65...
Kf7 {[%clk 0:00:17.4]} 66. Ke2 {[%clk 0:00:24.4]} 66... Ra3 {[%clk 0:00:18.3]}
67. Kd2 {[%clk 0:00:24.7]} 67... Ke7 {[%clk 0:00:18.7]} 68. Rc6 {[%clk 0:00:26]}
68... Kf7 {[%clk 0:00:19.5]} 69. Rc3 {[%clk 0:00:26.5]} 69... Ra4 {[%clk
0:00:21]} 70. Kd3 {[%clk 0:00:27.6]} 70... Ke7 {[%clk 0:00:22]} 71. Rc4 {[%clk
0:00:28.4]} 71... Ra8 {[%clk 0:00:23]} 72. Kd4 {[%clk 0:00:29]} 72... Kf7 {[%clk
0:00:23.1]} 73. Ke5 {[%clk 0:00:27.4]} 73... Re8+ {[%clk 0:00:23.5]} 74. Kxf5
{[%clk 0:00:28.4]} 74... Rxe3 {[%clk 0:00:24.7]} 75. Rc7+ {[%clk 0:00:29.8]}
75... Kg8 {[%clk 0:00:06.8]} 76. Kf6 {[%clk 0:00:24.9]} 76... Rf3 {[%clk
0:00:08.1]} 77. f5 {[%clk 0:00:25.8]} 77... Rf1 {[%clk 0:00:09.3]} 78. Rc8+
{[%clk 0:00:26]} 78... Kh7 {[%clk 0:00:10.3]} 79. Re8 {[%clk 0:00:27.6]} 79...
Rf2 {[%clk 0:00:06.6]} 80. Ra8 {[%clk 0:00:27.3]} 80... Rf1 {[%clk 0:00:06.7]}
81. Re8 {[%clk 0:00:23.9]} 81... Rf2 {[%clk 0:00:07.8]} 82. Re4 {[%clk
0:00:23.2]} 82... Ra2 {[%clk 0:00:06.2]} 83. Kf7 {[%clk 0:00:20.4]} 83... Ra7+
{[%clk 0:00:06.7]} 84. Re7 {[%clk 0:00:21.4]} 84... Ra8 {[%clk 0:00:07]} 85. f6
{[%clk 0:00:22.8]} 85... Rb8 {[%clk 0:00:08.2]} 86. Ke6+ {[%clk 0:00:21.6]}
86... Kg8 {[%clk 0:00:09]} 87. Kf5 {[%clk 0:00:21.6]} 87... Rb1 {[%clk
0:00:08.4]} 88. Ke6 {[%clk 0:00:20.8]} 88... Re1+ {[%clk 0:00:09.2]} 89. Kd7
{[%clk 0:00:22]} 89... Rf1 {[%clk 0:00:11.1]} 90. Ke6 {[%clk 0:00:19.7]} 90...
Re1+ {[%clk 0:00:11.5]} 91. Kd7 {[%clk 0:00:19.3]} 91... Rf1 {[%clk 0:00:12.9]}
92. Ke6 {[%clk 0:00:13]} 92... Re1+ {[%clk 0:00:14]} 1/2-1/2

[Event "*** Titled Tuesday Blitz"]
[Site "Chess.com"]
[Date "2020.01.07"]
[Round "4"]
[White "cukus"]
[Black "CzechmVIII"]
[Result "1/2-1/2"]
[WhiteElo "2449"]
[BlackElo "2171"]
[TimeControl "180+2"]
[EndTime "14:00:29 PST"]
[Termination "Game drawn - insufficient material"]

1. e4 {[%clk 0:03:01.9]} 1... c5 {[%clk 0:03:00.3]} 2. Nf3 {[%clk 0:02:47.1]}
2... d6 {[%clk 0:03:01.1]} 3. d4 {[%clk 0:02:47.1]} 3... cxd4 {[%clk 0:03:02.3]}
4. Nxd4 {[%clk 0:02:48.9]} 4... Nf6 {[%clk 0:03:03.2]} 5. Nc3 {[%clk 0:02:49.7]}
5... g6 {[%clk 0:03:04.5]} 6. Be3 {[%clk 0:02:50.2]} 6... Bg7 {[%clk 0:03:05.8]}
7. f3 {[%clk 0:02:51.5]} 7... O-O {[%clk 0:03:06.8]} 8. Qd2 {[%clk 0:02:52.8]}
8... Nc6 {[%clk 0:03:07.8]} 9. Bc4 {[%clk 0:02:53.6]} 9... Bd7 {[%clk
0:03:08.1]} 10. O-O-O {[%clk 0:02:54.7]} 10... Rc8 {[%clk 0:03:08.1]} 11. Bb3
{[%clk 0:02:55.6]} 11... Ne5 {[%clk 0:03:08.3]} 12. Kb1 {[%clk 0:02:56.7]} 12...
Nc4 {[%clk 0:03:08.1]} 13. Bxc4 {[%clk 0:02:57.5]} 13... Rxc4 {[%clk 0:03:09.2]}
14. g4 {[%clk 0:02:58.8]} 14... b5 {[%clk 0:03:10]} 15. h4 {[%clk 0:02:55.1]}
15... h5 {[%clk 0:02:51.3]} 16. g5 {[%clk 0:02:51.9]} 16... Nh7 {[%clk
0:02:34.1]} 17. Nde2 {[%clk 0:02:51.9]} 17... b4 {[%clk 0:02:27.5]} 18. Nd5
{[%clk 0:02:51.4]} 18... e6 {[%clk 0:02:14.6]} 19. Ndf4 {[%clk 0:02:43]} 19...
Rc6 {[%clk 0:01:49.7]} 20. Nd3 {[%clk 0:02:30.8]} 20... a5 {[%clk 0:01:40.3]}
21. Bd4 {[%clk 0:02:30.4]} 21... Qb8 {[%clk 0:01:34.1]} 22. Bxg7 {[%clk
0:02:29.8]} 22... Kxg7 {[%clk 0:01:35.3]} 23. Nd4 {[%clk 0:02:31]} 23... Rb6
{[%clk 0:01:31.7]} 24. f4 {[%clk 0:02:28.8]} 24... e5 {[%clk 0:01:23.8]} 25. Nf3
{[%clk 0:02:19.7]} 25... Bg4 {[%clk 0:01:22.9]} 26. Rhf1 {[%clk 0:02:19.4]}
26... exf4 {[%clk 0:01:19.4]} 27. Nxf4 {[%clk 0:02:13.5]} 27... Re8 {[%clk
0:01:16.6]} 28. Nd5 {[%clk 0:02:13.9]} 28... Rc6 {[%clk 0:01:16.2]} 29. Qd4+
{[%clk 0:02:13.8]} 29... Kg8 {[%clk 0:01:13.4]} 30. Rd3 {[%clk 0:01:59.7]} 30...
Qc8 {[%clk 0:00:50.8]} 31. Rd2 {[%clk 0:01:43.5]} 31... Rc4 {[%clk 0:00:48.3]}
32. Nf6+ {[%clk 0:01:44.3]} 32... Nxf6 {[%clk 0:00:43]} 33. Qxf6 {[%clk
0:01:46.2]} 33... Qe6 {[%clk 0:00:34.1]} 34. Rxd6 {[%clk 0:00:35.5]} 34... Qxf6
{[%clk 0:00:34.1]} 35. Rxf6 {[%clk 0:00:35.7]} 35... Rcxe4 {[%clk 0:00:33.6]}
36. b3 {[%clk 0:00:36.1]} 36... Bxf3 {[%clk 0:00:31.3]} 37. R1xf3 {[%clk
0:00:34.1]} 37... R8e7 {[%clk 0:00:30.8]} 38. R3f4 {[%clk 0:00:34.3]} 38... Rxf4
{[%clk 0:00:23.3]} 39. Rxf4 {[%clk 0:00:36.2]} 39... Re2 {[%clk 0:00:21.4]} 40.
a3 {[%clk 0:00:30]} 40... bxa3 {[%clk 0:00:20.3]} 41. Ra4 {[%clk 0:00:28.5]}
41... a2+ {[%clk 0:00:19.8]} 42. Rxa2 {[%clk 0:00:27.8]} 42... Re4 {[%clk
0:00:21]} 43. Rxa5 {[%clk 0:00:20.1]} 43... Rxh4 {[%clk 0:00:21.6]} 44. Kb2
{[%clk 0:00:18.1]} 44... Re4 {[%clk 0:00:21.5]} 45. Ra1 {[%clk 0:00:13.8]} 45...
f6 {[%clk 0:00:21.5]} 46. gxf6 {[%clk 0:00:13.8]} 46... Kf7 {[%clk 0:00:22.4]}
47. c4 {[%clk 0:00:13.6]} 47... g5 {[%clk 0:00:22.2]} 48. Kc3 {[%clk 0:00:13.6]}
48... h4 {[%clk 0:00:22.8]} 49. b4 {[%clk 0:00:14.3]} 49... g4 {[%clk 0:00:23]}
50. b5 {[%clk 0:00:15.1]} 50... g3 {[%clk 0:00:21.5]} 51. b6 {[%clk 0:00:16]}
51... g2 {[%clk 0:00:13.6]} 52. b7 {[%clk 0:00:15.3]} 52... Re3+ {[%clk
0:00:13.2]} 53. Kb4 {[%clk 0:00:08.5]} 53... Re2 {[%clk 0:00:14.1]} 54. Kb3
{[%clk 0:00:05.8]} 54... Re3+ {[%clk 0:00:13.1]} 55. Ka4 {[%clk 0:00:04.6]}
55... Rf3 {[%clk 0:00:07.6]} 56. b8=Q {[%clk 0:00:03.6]} 56... Rf1 {[%clk
0:00:08.8]} 57. Qc7+ {[%clk 0:00:02.9]} 57... Kxf6 {[%clk 0:00:08.8]} 58. Qc5
{[%clk 0:00:03.1]} 58... Rxa1+ {[%clk 0:00:06.6]} 59. Kb5 {[%clk 0:00:03.8]}
59... g1=Q {[%clk 0:00:07.4]} 60. Qf8+ {[%clk 0:00:05.5]} 60... Kg6 {[%clk
0:00:07.9]} 61. Qg8+ {[%clk 0:00:06.5]} 61... Kf5 {[%clk 0:00:09.2]} 62. Qd5+
{[%clk 0:00:07.5]} 62... Kf4 {[%clk 0:00:08.9]} 63. Qf7+ {[%clk 0:00:07.5]}
63... Kg3 {[%clk 0:00:09.8]} 64. Qg6+ {[%clk 0:00:07.1]} 64... Kh3 {[%clk
0:00:10.7]} 65. Qe6+ {[%clk 0:00:05.9]} 65... Qg4 {[%clk 0:00:11.7]} 66. Qe3+
{[%clk 0:00:06.7]} 66... Qg3 {[%clk 0:00:11.6]} 67. Qe6+ {[%clk 0:00:07.2]}
67... Qg4 {[%clk 0:00:11.5]} 68. Qe3+ {[%clk 0:00:07.7]} 68... Kh2 {[%clk
0:00:11.5]} 69. Qf2+ {[%clk 0:00:08]} 69... Qg2 {[%clk 0:00:10.5]} 70. Qxh4+
{[%clk 0:00:06.6]} 70... Kg1 {[%clk 0:00:10.8]} 71. Qd4+ {[%clk 0:00:07.1]}
71... Qf2 {[%clk 0:00:11.6]} 72. Qxa1+ {[%clk 0:00:07.8]} 72... Kg2 {[%clk
0:00:09.7]} 73. Qg7+ {[%clk 0:00:07.7]} 73... Kf1 {[%clk 0:00:09.6]} 74. Qc3
{[%clk 0:00:07]} 74... Qf7 {[%clk 0:00:06.8]} 75. Qd3+ {[%clk 0:00:05]} 75...
Kg1 {[%clk 0:00:05.5]} 76. Qd4+ {[%clk 0:00:05.7]} 76... Kf1 {[%clk 0:00:06.2]}
77. Qd5 {[%clk 0:00:05.5]} 77... Qa7 {[%clk 0:00:06.3]} 78. c5 {[%clk 0:00:05]}
78... Qb8+ {[%clk 0:00:06.8]} 79. Ka6 {[%clk 0:00:05.7]} 79... Qc8+ {[%clk
0:00:06.5]} 80. Kb6 {[%clk 0:00:05.8]} 80... Qb8+ {[%clk 0:00:07.4]} 81. Qb7
{[%clk 0:00:06.6]} 81... Qd8+ {[%clk 0:00:08.6]} 82. Qc7 {[%clk 0:00:07.2]}
82... Qa8 {[%clk 0:00:07.5]} 83. c6 {[%clk 0:00:07.4]} 83... Qa4 {[%clk
0:00:08.1]} 84. Qf7+ {[%clk 0:00:04.8]} 84... Kg1 {[%clk 0:00:07.1]} 85. Qg6+
{[%clk 0:00:05.5]} 85... Kf2 {[%clk 0:00:05.9]} 86. Qf5+ {[%clk 0:00:05.8]}
86... Kg1 {[%clk 0:00:05.2]} 87. Qc5+ {[%clk 0:00:06.4]} 87... Kh1 {[%clk
0:00:02.3]} 88. c7 {[%clk 0:00:07.1]} 88... Qb3+ {[%clk 0:00:03.1]} 89. Kc6
{[%clk 0:00:06.9]} 89... Qa4+ {[%clk 0:00:03.3]} 90. Kd6 {[%clk 0:00:05.8]}
90... Qf4+ {[%clk 0:00:01.8]} 91. Kd7 {[%clk 0:00:06.5]} 91... Qg4+ {[%clk
0:00:02.3]} 92. Kc6 {[%clk 0:00:06.6]} 92... Qc8 {[%clk 0:00:03.3]} 93. Qd5+
{[%clk 0:00:07]} 93... Kg1 {[%clk 0:00:04.5]} 94. Qd8 {[%clk 0:00:06.7]} 94...
Qa6+ {[%clk 0:00:04.4]} 95. Kd7 {[%clk 0:00:07.3]} 95... Qa4+ {[%clk 0:00:05.6]}
96. Ke7 {[%clk 0:00:07.5]} 96... Qe4+ {[%clk 0:00:06.1]} 97. Kf7 {[%clk
0:00:06.3]} 97... Qf5+ {[%clk 0:00:06.8]} 98. Qf6 {[%clk 0:00:06.6]} 98... Qd5+
{[%clk 0:00:07]} 99. Qe6 {[%clk 0:00:07.2]} 99... Qf3+ {[%clk 0:00:07]} 100. Ke8
{[%clk 0:00:06.9]} 100... Qc6+ {[%clk 0:00:03.4]} 101. Kd8 {[%clk 0:00:06.9]}
101... Qxe6 {[%clk 0:00:03.8]} 102. c8=Q {[%clk 0:00:06.4]} 102... Qxc8+ {[%clk
0:00:05.4]} 103. Kxc8 {[%clk 0:00:07.1]} 1/2-1/2

[Event "*** Titled Tuesday Blitz"]
[Site "Chess.com"]
[Date "2020.01.07"]
[Round "5"]
[White "esteban062000"]
[Black "aa175"]
[Result "1-0"]
[WhiteElo "2096"]
[BlackElo "2208"]
[TimeControl "180+2"]
[EndTime "14:03:49 PST"]
[Termination "esteban062000 won by resignation"]

1. Nf3 {[%clk 0:03:01.9]} 1... Nf6 {[%clk 0:03:00.1]} 2. c4 {[%clk 0:03:02.7]}
2... g6 {[%clk 0:03:00.5]} 3. b4 {[%clk 0:03:03.6]} 3... Bg7 {[%clk 0:03:01.9]}
4. Bb2 {[%clk 0:03:04.8]} 4... O-O {[%clk 0:03:03.5]} 5. g3 {[%clk 0:03:06.2]}
5... d5 {[%clk 0:03:05]} 6. cxd5 {[%clk 0:03:06.2]} 6... Nxd5 {[%clk 0:03:06.9]}
7. Bxg7 {[%clk 0:03:06.6]} 7... Kxg7 {[%clk 0:03:08.5]} 8. a3 {[%clk 0:03:07.8]}
8... a5 {[%clk 0:03:07.4]} 9. b5 {[%clk 0:03:05.8]} 9... c6 {[%clk 0:03:05.2]}
10. a4 {[%clk 0:03:06]} 10... Bf5 {[%clk 0:03:01.5]} 11. Bg2 {[%clk 0:03:04.3]}
11... Nb4 {[%clk 0:03:01.1]} 12. d3 {[%clk 0:03:05.1]} 12... cxb5 {[%clk
0:03:00.7]} 13. axb5 {[%clk 0:03:05.7]} 13... Qc7 {[%clk 0:02:59.8]} 14. O-O
{[%clk 0:03:05.3]} 14... Nd7 {[%clk 0:03:00.8]} 15. Nbd2 {[%clk 0:03:02.7]}
15... Qb6 {[%clk 0:02:59.3]} 16. Nc4 {[%clk 0:03:00.8]} 16... Qxb5 {[%clk
0:02:58.8]} 17. Nd4 {[%clk 0:03:02.1]} 17... Qc5 {[%clk 0:02:51.5]} 18. Nb3
{[%clk 0:02:57.8]} 18... Qe5 {[%clk 0:02:47.4]} 19. Nxe5 {[%clk 0:02:57.4]}
19... Nxe5 {[%clk 0:02:46.1]} 20. Rxa5 {[%clk 0:02:58.2]} 20... Rxa5 {[%clk
0:02:43.9]} 21. Nxa5 {[%clk 0:03:00.1]} 21... b6 {[%clk 0:02:43.2]} 22. Nc4
{[%clk 0:02:59.4]} 22... Nd7 {[%clk 0:02:40.5]} 23. Qa1+ {[%clk 0:02:56]} 23...
f6 {[%clk 0:02:40.7]} 24. Qa3 {[%clk 0:02:43.2]} 1-0

[Event "*** Titled Tuesday Blitz"]
[Site "Chess.com"]
[Date "2020.01.07"]
[Round "5"]
[White "PaulfromSPb"]
[Black "Vegan4future"]
[Result "0-1"]
[WhiteElo "2635"]
[BlackElo "2437"]
[TimeControl "180+2"]
[EndTime "14:04:20 PST"]
[Termination "Vegan4future won by resignation"]

1. d4 {[%clk 0:03:01.9]} 1... Nf6 {[%clk 0:03:00]} 2. Bf4 {[%clk 0:03:03.3]}
2... g6 {[%clk 0:02:59.8]} 3. Nd2 {[%clk 0:03:01]} 3... d5 {[%clk 0:03:00.3]} 4.
e3 {[%clk 0:03:02]} 4... Bg7 {[%clk 0:03:00.8]} 5. h3 {[%clk 0:03:03.1]} 5...
O-O {[%clk 0:02:59]} 6. Ngf3 {[%clk 0:03:04.4]} 6... c5 {[%clk 0:03:00.1]} 7. c3
{[%clk 0:03:05.3]} 7... b6 {[%clk 0:03:00.3]} 8. Ne5 {[%clk 0:03:03.4]} 8... Bb7
{[%clk 0:03:00.8]} 9. Bd3 {[%clk 0:03:03.2]} 9... Nbd7 {[%clk 0:03:02.1]} 10.
O-O {[%clk 0:03:03.2]} 10... Ne4 {[%clk 0:02:58.4]} 11. Nxd7 {[%clk 0:02:56.6]}
11... Qxd7 {[%clk 0:02:57.7]} 12. Bxe4 {[%clk 0:02:55.3]} 12... dxe4 {[%clk
0:02:59.6]} 13. Qc2 {[%clk 0:02:56.6]} 13... cxd4 {[%clk 0:02:56.8]} 14. cxd4
{[%clk 0:02:57.1]} 14... Rac8 {[%clk 0:02:56.8]} 15. Qb3 {[%clk 0:02:56.3]}
15... Bd5 {[%clk 0:02:53.5]} 16. Qa3 {[%clk 0:02:56.7]} 16... Rc2 {[%clk
0:02:52.7]} 17. Nb3 {[%clk 0:02:54.7]} 17... Rfc8 {[%clk 0:02:50.3]} 18. Be5
{[%clk 0:02:46.6]} 18... Bf8 {[%clk 0:02:46.4]} 19. Rab1 {[%clk 0:02:36]} 19...
f6 {[%clk 0:02:41.2]} 20. Bg3 {[%clk 0:02:35]} 20... e5 {[%clk 0:02:42.7]} 21.
Qa6 {[%clk 0:02:33.3]} 21... Bc4 {[%clk 0:02:43.6]} 22. Nc5 {[%clk 0:02:30.1]}
22... bxc5 {[%clk 0:02:23.7]} 23. Qxf6 {[%clk 0:02:30.2]} 23... Bxf1 {[%clk
0:02:24.7]} 24. Rxf1 {[%clk 0:02:25.6]} 24... Bg7 {[%clk 0:02:22.5]} 25. Qa6
{[%clk 0:02:20.6]} 25... exd4 {[%clk 0:02:21.3]} 26. Qa4 {[%clk 0:02:05.8]}
26... Qxa4 {[%clk 0:02:19.5]} 0-1